fUSD/lending_fUSD_20240611
["ID","MTS","AMOUNT","RATE_DAILY","PERIOD"]
[329119511,1718122238245,-200.38251979,0.00021915,2]
[329119512,1718122238255,-262.76725722,0.00021915,2]
[329119513,1718122238266,-155.0,0.00021915,2]
[329119514,1718122238276,-204.83680168,0.00021915,2]
[329119515,1718122238287,-962.80036904,0.00021915,2]
[329119516,1718122238298,-4138.66944695,0.00021915,2]
[329119517,1718122238310,-3885.36904142,0.00021915,2]
[329119518,1718122238321,-535.41970351,0.00021915,2]
[329119519,1718122238333,-454.03839842,0.00021915,2]
[329119520,1718122238344,-268.40583128,0.00021915,2]
[329119521,1718122238354,-198.86105906,0.00021915,2]
[329119522,1718122238364,-212.24867067,0.00021915,2]
[329119523,1718122238374,-825.29589534,0.00021915,2]
[329119524,1718122238384,-408.70433109,0.00021915,2]
[329119525,1718122238394,-3107.38825477,0.00021915,2]
[329119526,1718122238405,-2143.56266983,0.00021915,2]
[329119527,1718122238415,-274.52500064,0.00021916,2]
[329119528,1718122238426,-500.0,0.00021916,2]
[329119529,1718122238436,-471.12496136,0.00021916,2]
[329119530,1718122238447,-448.39083439,0.00021916,2]
[329119531,1718122238458,-500.0,0.00021917,2]
[329119532,1718122238468,-281.44870859,0.00021917,2]
[329119533,1718122238479,-837.27,0.00021917,2]
[329119534,1718122238489,-500.0,0.00021917,2]
[329119535,1718122238504,-500.0,0.00021917,2]
[329119536,1718122238514,-500.0,0.00021917,2]
[329119537,1718122238525,-538.18180326,0.00021917,2]
[329119538,1718122238535,-500.0,0.00021917,2]
[329119539,1718122238545,-500.0,0.00021917,2]
[329119540,1718122238556,-485.36779334,0.00021917,2]
[329119541,1718122238567,-500.0,0.00021917,2]
[329119542,1718122238577,-500.0,0.00021917,2]
[329119543,1718122238588,-500.0,0.00021917,2]
[329119544,1718122238603,-500.0,0.00021917,2]
[329119545,1718122238614,-500.0,0.00021917,2]
[329119546,1718122238627,-500.0,0.00021917,2]
[329119547,1718122238639,-715.14,0.00021917,2]
[329119548,1718122238650,-500.0,0.00021917,2]
[329119549,1718122238660,-752.38,0.00021917,2]
[329119550,1718122238670,-500.0,0.00021917,2]
[329119551,1718122238682,-500.0,0.00021917,2]
[329119552,1718122238693,-657.43,0.00021917,2]
[329119553,1718122238703,-500.0,0.00021917,2]
[329119554,1718122238713,-500.0,0.00021917,2]
[329119555,1718122238724,-500.0,0.00021917,2]
[329119556,1718122238734,-500.0,0.00021917,2]
[329119557,1718122238745,-500.0,0.00021917,2]
[329119558,1718122238755,-516.92332214,0.00021917,2]
[329119559,1718122238764,-780.27,0.00021917,2]
[329119560,1718122238774,-500.0,0.00021917,2]
[329119561,1718122238783,-500.0,0.00021917,2]
[329119562,1718122238793,-500.0,0.00021917,2]
[329119563,1718122238803,-500.0,0.00021917,2]
[329119564,1718122238813,-500.0,0.00021917,2]
[329119565,1718122238825,-500.0,0.00021917,2]
[329119566,1718122238835,-500.0,0.00021917,2]
[329119567,1718122238845,-500.0,0.00021917,2]
[329119568,1718122238856,-500.0,0.00021917,2]
[329119569,1718122238866,-704.45,0.00021917,2]
[329119570,1718122238877,-500.0,0.00021917,2]
[329119571,1718122238888,-500.0,0.00021917,2]
[329119572,1718122238898,-500.0,0.00021917,2]
[329119573,1718122238909,-500.0,0.00021917,2]
[329119574,1718122238919,-913.75,0.00021917,2]
[329119575,1718122238930,-506.19,0.00021917,2]
[329119576,1718122238940,-500.0,0.00021917,2]
[329119577,1718122238950,-500.0,0.00021917,2]
[329119578,1718122238962,-501.08,0.00021917,2]
[329119579,1718122238972,-746.24,0.00021917,2]
[329119580,1718122238982,-500.0,0.00021917,2]
[329119581,1718122238995,-500.0,0.00021917,2]
[329119582,1718122239005,-500.0,0.00021917,2]
[329119583,1718122239015,-500.0,0.00021917,2]
[329119584,1718122239026,-500.0,0.00021917,2]
[329119585,1718122239036,-500.0,0.00021917,2]
[329119586,1718122239047,-500.0,0.00021917,2]
[329119587,1718122239057,-500.0,0.00021917,2]
[329119588,1718122239067,-500.0,0.00021917,2]
[329119589,1718122239078,-500.0,0.00021917,2]
[329119590,1718122239090,-500.0,0.00021917,2]
[329119591,1718122239101,-500.0,0.00021917,2]
[329119592,1718122239112,-500.0,0.00021917,2]
[329119593,1718122239122,-633.35570062,0.00021917,2]
[329119594,1718122239134,-500.0,0.00021917,2]
[329119595,1718122239144,-516.69385498,0.00021917,2]
[329119596,1718122239155,-500.0,0.00021917,2]
[329119597,1718122239166,-500.0,0.00021917,2]
[329119599,1718122239177,-500.0,0.00021917,2]
[329119601,1718122239190,-500.0,0.00021917,2]
[329119603,1718122239214,-500.0,0.00021917,2]
[329119605,1718122239225,-500.0,0.00021917,2]
[329119607,1718122239236,-500.0,0.00021917,2]
[329119609,1718122239249,-590.68,0.00021917,2]
[329119611,1718122239260,-500.0,0.00021917,2]
[329119613,1718122239272,-500.0,0.00021917,2]
[329119615,1718122239283,-500.0,0.00021917,2]
[329119617,1718122239293,-500.0,0.00021917,2]
[329119619,1718122239304,-500.0,0.00021917,2]
[329119621,1718122239315,-500.0,0.00021917,2]
[329119623,1718122239326,-500.0,0.00021917,2]
[329119625,1718122239336,-500.0,0.00021917,2]
[329119627,1718122239346,-500.0,0.00021917,2]
[329119629,1718122239357,-338.4992674,0.00021917,2]
[329119631,1718122239369,-635.44284051,0.00021917,2]
[329119633,1718122239380,-515.13085356,0.00021917,2]
[329119635,1718122239390,-447.72818215,0.00021917,2]
[329119637,1718122239402,-500.0,0.00021917,2]
[329119639,1718122239412,-529.8566995,0.00021917,2]
[329119641,1718122239423,-500.0,0.00021917,2]
[329119642,1718122239434,-720.1,0.00021917,2]
[329119644,1718122239445,-500.0,0.00021917,2]
[329119646,1718122239455,-500.0,0.00021917,2]
[329119648,1718122239467,-500.0,0.00021917,2]
[329119650,1718122239477,-500.0,0.00021917,2]
[329119651,1718122239488,-500.0,0.00021917,2]
[329119653,1718122239500,-500.0,0.00021917,2]
[329119655,1718122239509,-510.7015915,0.00021917,2]
[329119657,1718122239519,-500.0,0.00021917,2]
[329119659,1718122239530,-513.21723866,0.00021917,2]
[329119661,1718122239540,-512.88637503,0.00021917,2]
[329119663,1718122239551,-505.19722955,0.00021917,2]
[329119665,1718122239561,-536.79472055,0.00021917,2]
[329119667,1718122239572,-500.0,0.00021917,2]
[329119669,1718122239582,-500.0,0.00021917,2]
[329119671,1718122239593,-631.31,0.00021917,2]
[329119673,1718122239607,-500.0,0.00021917,2]
[329119675,1718122239617,-500.0,0.00021917,2]
[329119677,1718122239628,-500.0,0.00021917,2]
[329119679,1718122239638,-500.0,0.00021917,2]
[329119681,1718122239650,-500.0,0.00021917,2]
[329119682,1718122239660,-500.0,0.00021917,2]
[329119684,1718122239671,-498.72388841,0.00021917,2]
[329119687,1718122239683,-737.57,0.00021917,2]
[329119688,1718122239693,-500.0,0.00021917,2]
[329119691,1718122239704,-500.0,0.00021917,2]
[329119692,1718122239714,-500.0,0.00021917,2]
[329119695,1718122239725,-500.0,0.00021917,2]
[329119696,1718122239735,-519.37110567,0.00021917,2]
[329119698,1718122239746,-506.79588199,0.00021917,2]
[329119700,1718122239757,-631.32,0.00021917,2]
[329119702,1718122239766,-590.12,0.00021917,2]
[329119704,1718122239777,-1062.77,0.00021917,2]
[329119706,1718122239788,-500.0,0.00021917,2]
[329119708,1718122239798,-508.93979412,0.00021917,2]
[329119710,1718122239809,-1061.0,0.00021917,2]
[329119712,1718122239819,-540.93493691,0.00021917,2]
[329119714,1718122239829,-683.44,0.00021917,2]
[329119716,1718122239840,-500.0,0.00021917,2]
[329119718,1718122239850,-500.0,0.00021917,2]
[329119720,1718122239860,-500.0,0.00021917,2]
[329119722,1718122239872,-627.16,0.00021917,2]
[329119724,1718122239882,-500.0,0.00021917,2]
[329119726,1718122239893,-545.75450259,0.00021917,2]
[329119728,1718122239903,-507.81079196,0.00021917,2]
[329119730,1718122239913,-500.0,0.00021917,2]
[329119732,1718122239924,-500.0,0.00021917,2]
[329119734,1718122239934,-525.25379769,0.00021917,2]
[329119736,1718122239945,-500.0,0.00021917,2]
[329119737,1718122239955,-569.68,0.00021917,2]
[329119739,1718122239966,-500.0,0.00021917,2]
[329119741,1718122239976,-500.0,0.00021917,2]
[329119743,1718122239986,-500.0,0.00021917,2]
[329119745,1718122239999,-500.0,0.00021917,2]
[329119747,1718122240011,-753.58,0.00021917,2]
[329119749,1718122240022,-500.0,0.00021917,2]
[329119751,1718122240033,-500.0,0.00021917,2]
[329119753,1718122240044,-500.0,0.00021917,2]
[329119755,1718122240055,-514.23622812,0.00021917,2]
[329119757,1718122240066,-500.0,0.00021917,2]
[329119759,1718122240077,-500.0,0.00021917,2]
[329119761,1718122240088,-500.0,0.00021917,2]
[329119763,1718122240098,-1324.6,0.00021917,2]
[329119765,1718122240109,-452.81647033,0.00021917,2]
[329119767,1718122240120,-500.0,0.00021917,2]
[329119769,1718122240131,-1002.38,0.00021917,2]
[329119771,1718122240141,-500.0,0.00021917,2]
[329119773,1718122240152,-560.35,0.00021917,2]
[329119775,1718122240163,-500.0,0.00021917,2]
[329119777,1718122240174,-500.0,0.00021917,2]
[329119779,1718122240185,-500.0,0.00021917,2]
[329119781,1718122240203,-613.97,0.00021917,2]
[329119783,1718122240216,-500.0,0.00021917,2]
[329119785,1718122240228,-1633.38,0.00021917,2]
[329119787,1718122240240,-500.0,0.00021917,2]
[329119789,1718122240254,-775.46,0.00021917,2]
[329119791,1718122240266,-684.42,0.00021917,2]
[329119794,1718122240279,-1047.66,0.00021917,2]
[329119796,1718122240291,-500.0,0.00021917,2]
[329119798,1718122240302,-502.07912789,0.00021917,2]
[329119799,1718122240311,-500.0,0.00021917,2]
[329119801,1718122240322,-992.01,0.00021917,2]
[329119803,1718122240333,-500.0,0.00021917,2]
[329119805,1718122240344,-500.0,0.00021917,2]
[329119807,1718122240356,-668.11,0.00021917,2]
[329119809,1718122240367,-500.0,0.00021917,2]
[329119811,1718122240379,-905.09,0.00021917,2]
[329119813,1718122240390,-500.0,0.00021917,2]
[329119815,1718122240401,-1000.6,0.00021917,2]
[329119817,1718122240412,-500.0,0.00021917,2]
[329119819,1718122240423,-500.0,0.00021917,2]
[329119821,1718122240434,-500.0,0.00021917,2]
[329119823,1718122240445,-702.74,0.00021917,2]
[329119825,1718122240456,-1016.6,0.00021917,2]
[329119827,1718122240467,-500.0,0.00021917,2]
[329119829,1718122240479,-626.43,0.00021917,2]
[329119831,1718122240490,-500.0,0.00021917,2]
[329119833,1718122240503,-500.0,0.00021917,2]
[329119835,1718122240514,-500.0,0.00021917,2]
[329119837,1718122240525,-500.0,0.00021917,2]
[329119839,1718122240536,-500.0,0.00021917,2]
[329119841,1718122240547,-500.0,0.00021917,2]
[329119843,1718122240558,-1216.42,0.00021917,2]
[329119845,1718122240569,-500.0,0.00021917,2]
[329119847,1718122240580,-907.27,0.00021917,2]
[329119849,1718122240591,-509.57,0.00021917,2]
[329119851,1718122240606,-622.25,0.00021917,2]
[329119853,1718122240617,-500.0,0.00021917,2]
[329119855,1718122240629,-500.0,0.00021917,2]
[329119857,1718122240641,-557.85,0.00021917,2]
[329119859,1718122240653,-1146.81,0.00021917,2]
[329119861,1718122240664,-500.0,0.00021917,2]
[329119863,1718122240675,-500.0,0.00021917,2]
[329119865,1718122240689,-500.0,0.00021917,2]
[329119890,1718122240888,-500.0,0.00021917,2]
[329119894,1718122240940,-510.20853128,0.00021917,2]
[329119896,1718122240951,-500.0,0.00021917,2]
[329119898,1718122240962,-552.91,0.00021917,2]
[329119900,1718122240972,-854.81,0.00021917,2]
[329119902,1718122240984,-2004.68,0.00021917,2]
[329119904,1718122240994,-1145.26,0.00021917,2]
[329119906,1718122241008,-500.0,0.00021917,2]
[329119908,1718122241019,-658.29,0.00021917,2]
[329119910,1718122241030,-386.89,0.00021917,2]
[329119912,1718122241042,-500.0,0.00021917,2]
[329119914,1718122241053,-500.0,0.00021917,2]
[329119916,1718122241065,-500.0,0.00021917,2]
[329119918,1718122241076,-500.0,0.00021917,2]
[329119920,1718122241088,-500.0,0.00021917,2]
[329119922,1718122241099,-500.0,0.00021917,2]
[329119924,1718122241110,-692.29,0.00021917,2]
[329119926,1718122241121,-1004.21,0.00021917,2]
[329119928,1718122241133,-319.20324917,0.00021917,2]
[329119930,1718122241144,-500.0,0.00021917,2]
[329119932,1718122241155,-500.0,0.00021917,2]
[329119934,1718122241167,-500.0,0.00021917,2]
[329119936,1718122241178,-500.0,0.00021917,2]
[329119938,1718122241189,-500.0,0.00021917,2]
[329119940,1718122241202,-2003.18,0.00021917,2]
[329119942,1718122241216,-505.04914477,0.00021917,2]
[329119944,1718122241227,-678.19,0.00021917,2]
[329119946,1718122241238,-500.0,0.00021917,2]
[329119948,1718122241251,-500.0,0.00021917,2]
[329119950,1718122241261,-1884.96,0.00021917,2]
[329119952,1718122241272,-500.0,0.00021917,2]
[329119953,1718122241284,-1228.86,0.00021917,2]
[329119954,1718122241295,-489.24973867,0.00021917,2]
[329119955,1718122241306,-528.35427815,0.00021917,2]
[329119956,1718122241316,-500.0,0.00021917,2]
[329119957,1718122241328,-522.64437607,0.00021917,2]
[329119958,1718122241339,-500.0,0.00021917,2]
[329119959,1718122241350,-500.0,0.00021917,2]
[329119960,1718122241360,-500.0,0.00021917,2]
[329119961,1718122241371,-2467.96,0.00021917,2]
[329119963,1718122241382,-500.0,0.00021917,2]
[329119965,1718122241392,-500.0,0.00021917,2]
[329119967,1718122241402,-310.0,0.00021917,2]
[329119969,1718122241413,-1661.39,0.00021917,2]
[329119971,1718122241424,-548.36,0.00021917,2]
[329119973,1718122241434,-1433.52,0.00021917,2]
[329119975,1718122241444,-500.0,0.00021917,2]
[329119977,1718122241456,-800.66,0.00021917,2]
[329119979,1718122241467,-1037.71,0.00021917,2]
[329119981,1718122241478,-500.0,0.00021917,2]
[329119983,1718122241488,-500.0,0.00021917,2]
[329119985,1718122241501,-899.67,0.00021917,2]
[329119987,1718122241512,-514.15,0.00021917,2]
[329119989,1718122241523,-500.0,0.00021917,2]
[329119991,1718122241534,-500.0,0.00021917,2]
[329119993,1718122241545,-618.69,0.00021917,2]
[329119995,1718122241556,-500.0,0.00021917,2]
[329119998,1718122241566,-500.0,0.00021917,2]
[329119999,1718122241577,-1506.5,0.00021917,2]
[329120001,1718122241588,-542.14,0.00021917,2]
[329120004,1718122241605,-500.0,0.00021917,2]
[329120006,1718122241616,-1403.68,0.00021917,2]
[329120008,1718122241627,-500.0,0.00021917,2]
[329120009,1718122241638,-720.34,0.00021917,2]
[329120011,1718122241649,-500.0,0.00021917,2]
[329120014,1718122241660,-500.0,0.00021917,2]
[329120016,1718122241670,-500.0,0.00021917,2]
[329120017,1718122241683,-500.0,0.00021917,2]
[329120020,1718122241694,-1338.52,0.00021917,2]
[329120022,1718122241705,-500.0,0.00021917,2]
[329120024,1718122241716,-500.0,0.00021917,2]
[329120025,1718122241727,-812.27,0.00021917,2]
[329120027,1718122241737,-500.0,0.00021917,2]
[329120030,1718122241749,-1632.21,0.00021917,2]
[329120032,1718122241759,-500.0,0.00021917,2]
[329120033,1718122241770,-500.0,0.00021917,2]
[329120035,1718122241781,-2914.63,0.00021917,2]
[329120038,1718122241791,-500.0,0.00021917,2]
[329120040,1718122241802,-500.0,0.00021917,2]
[329120042,1718122241813,-500.0,0.00021917,2]
[329120044,1718122241824,-500.0,0.00021917,2]
[329120046,1718122241834,-970.88,0.00021917,2]
[329120048,1718122241845,-500.0,0.00021917,2]
[329120050,1718122241855,-1042.61,0.00021917,2]
[329120052,1718122241866,-500.0,0.00021917,2]
[329120054,1718122241877,-563.4,0.00021917,2]
[329120055,1718122241887,-500.0,0.00021917,2]
[329120058,1718122241898,-521.79211897,0.00021917,2]
[329120060,1718122241909,-1098.07,0.00021917,2]
[329120062,1718122241920,-500.0,0.00021917,2]
[329120064,1718122241931,-500.0,0.00021917,2]
[329120066,1718122241942,-2797.89,0.00021917,2]
[329120068,1718122241952,-514.39,0.00021917,2]
[329120070,1718122241963,-1484.55,0.00021917,2]
[329120072,1718122241974,-500.0,0.00021917,2]
[329120074,1718122241985,-1524.07,0.00021917,2]
[329120076,1718122242000,-500.0,0.00021917,2]
[329120078,1718122242011,-500.0,0.00021917,2]
[329120080,1718122242021,-511.31,0.00021917,2]
[329120082,1718122242031,-160.58687913,0.00021917,2]
[329120084,1718122242042,-500.0,0.00021917,2]
[329120086,1718122242053,-500.0,0.00021917,2]
[329120088,1718122242063,-250.0,0.00021917,2]
[329120090,1718122242073,-500.0,0.00021917,2]
[329120092,1718122242084,-1236.16,0.00021917,2]
[329120094,1718122242094,-500.0,0.00021917,2]
[329120096,1718122242105,-780.73,0.00021917,2]
[329120098,1718122242114,-500.0,0.00021917,2]
[329120100,1718122242125,-999.85,0.00021917,2]
[329120102,1718122242135,-1249.98,0.00021917,2]
[329120104,1718122242145,-606.21,0.00021917,2]
[329120106,1718122242156,-583.96,0.00021917,2]
[329120108,1718122242167,-329.78852994,0.00021917,2]
[329120110,1718122242179,-500.0,0.00021917,2]
[329120112,1718122242190,-576.7,0.00021917,2]
[329120114,1718122242206,-500.0,0.00021917,2]
[329120117,1718122242218,-1426.22,0.00021917,2]
[329120119,1718122242228,-500.0,0.00021917,2]
[329120121,1718122242239,-500.0,0.00021917,2]
[329120122,1718122242251,-500.0,0.00021917,2]
[329120124,1718122242262,-597.47,0.00021917,2]
[329120127,1718122242273,-500.0,0.00021917,2]
[329120129,1718122242283,-500.0,0.00021917,2]
[329120131,1718122242293,-500.0,0.00021917,2]
[329120133,1718122242304,-1682.56,0.00021917,2]
[329120135,1718122242315,-972.07,0.00021917,2]
[329120137,1718122242325,-500.0,0.00021917,2]
[329120139,1718122242336,-500.0,0.00021917,2]
[329120141,1718122242347,-500.0,0.00021917,2]
[329120143,1718122242357,-1536.24,0.00021917,2]
[329120145,1718122242368,-559.7,0.00021917,2]
[329120147,1718122242378,-503.44232283,0.00021917,2]
[329120149,1718122242390,-516.74502461,0.00021917,2]
[329120151,1718122242401,-660.39,0.00021917,2]
[329120153,1718122242412,-500.0,0.00021917,2]
[329120155,1718122242423,-500.0,0.00021917,2]
[329120157,1718122242434,-591.33,0.00021917,2]
[329120159,1718122242445,-500.0,0.00021917,2]
[329120161,1718122242456,-795.15,0.00021917,2]
[329120163,1718122242467,-500.0,0.00021917,2]
[329120165,1718122242478,-500.0,0.00021917,2]
[329120167,1718122242488,-500.0,0.00021917,2]
[329120169,1718122242500,-500.0,0.00021917,2]
[329120171,1718122242512,-500.0,0.00021917,2]
[329120173,1718122242523,-500.0,0.00021917,2]
[329120175,1718122242534,-500.0,0.00021917,2]
[329120177,1718122242544,-504.91897091,0.00021917,2]
[329120179,1718122242555,-707.25,0.00021917,2]
[329120181,1718122242566,-500.0,0.00021917,2]
[329120183,1718122242576,-500.0,0.00021917,2]
[329120185,1718122242587,-500.0,0.00021917,2]
[329120187,1718122242604,-500.0,0.00021917,2]
[329120189,1718122242615,-500.0,0.00021917,2]
[329120191,1718122242626,-615.68,0.00021917,2]
[329120193,1718122242638,-500.0,0.00021917,2]
[329120195,1718122242649,-500.0,0.00021917,2]
[329120198,1718122242659,-500.0,0.00021917,2]
[329120200,1718122242670,-500.0,0.00021917,2]
[329120202,1718122242682,-500.0,0.00021917,2]
[329120204,1718122242693,-500.0,0.00021917,2]
[329120206,1718122242706,-179.04569401,0.00021917,2]
[329120208,1718122242717,-625.57,0.00021917,2]
[329120210,1718122242727,-1150.67,0.00021917,2]
[329120212,1718122242738,-505.47326474,0.00021917,2]
[329120214,1718122242751,-500.0,0.00021917,2]
[329120216,1718122242762,-500.0,0.00021917,2]
[329120218,1718122242773,-500.0,0.00021917,2]
[329120220,1718122242783,-500.0,0.00021917,2]
[329120222,1718122242794,-1081.25,0.00021917,2]
[329120224,1718122242804,-500.0,0.00021917,2]
[329120227,1718122242815,-500.0,0.00021917,2]
[329120230,1718122242826,-500.0,0.00021917,2]
[329120233,1718122242838,-500.0,0.00021917,2]
[329120236,1718122242848,-508.16381703,0.00021917,2]
[329120238,1718122242860,-500.0,0.00021917,2]
[329120240,1718122242870,-1091.6,0.00021917,2]
[329120242,1718122242880,-508.84126634,0.00021917,2]
[329120244,1718122242891,-500.0,0.00021917,2]
[329120246,1718122242901,-500.0,0.00021917,2]
[329120248,1718122242912,-500.0,0.00021917,2]
[329120250,1718122242922,-500.0,0.00021917,2]
[329120252,1718122242932,-500.0,0.00021917,2]
[329120254,1718122242945,-977.39,0.00021917,2]
[329120256,1718122242956,-500.0,0.00021917,2]
[329120258,1718122242966,-530.66602174,0.00021917,2]
[329120260,1718122242979,-500.0,0.00021917,2]
[329120262,1718122242989,-1528.61,0.00021917,2]
[329120264,1718122243001,-504.74125149,0.00021917,2]
[329120266,1718122243011,-500.0,0.00021917,2]
[329120268,1718122243021,-500.0,0.00021917,2]
[329120270,1718122243031,-676.71,0.00021917,2]
[329120272,1718122243041,-500.0,0.00021917,2]
[329120275,1718122243052,-841.51,0.00021917,2]
[329120276,1718122243063,-640.48,0.00021917,2]
[329120278,1718122243073,-600.95,0.00021917,2]
[329120280,1718122243083,-500.0,0.00021917,2]
[329120282,1718122243093,-500.0,0.00021917,2]
[329120285,1718122243103,-500.0,0.00021917,2]
[329120286,1718122243114,-500.0,0.00021917,2]
[329120289,1718122243124,-500.0,0.00021917,2]
[329120290,1718122243135,-500.0,0.00021917,2]
[329120294,1718122243145,-509.53,0.00021917,2]
[329120296,1718122243156,-649.6,0.00021917,2]
[329120298,1718122243166,-500.0,0.00021917,2]
[329120300,1718122243177,-500.0,0.00021917,2]
[329120302,1718122243187,-521.25878835,0.00021917,2]
[329120304,1718122243199,-500.0,0.00021917,2]
[329120306,1718122243214,-2282.53,0.00021917,2]
[329120308,1718122243225,-534.20313292,0.00021917,2]
[329120310,1718122243235,-640.14291909,0.00021917,2]
[329120312,1718122243245,-500.0,0.00021917,2]
[329120314,1718122243258,-500.0,0.00021917,2]
[329120318,1718122243267,-621.53,0.00021917,2]
[329120320,1718122243277,-1031.0,0.00021917,2]
[329120324,1718122243287,-500.0,0.00021917,2]
[329120328,1718122243298,-1253.27,0.00021917,2]
[329120331,1718122243309,-987.06,0.00021917,2]
[329120334,1718122243319,-512.75770186,0.00021917,2]
[329120337,1718122243330,-893.04,0.00021917,2]
[329120339,1718122243340,-501.58885433,0.00021917,2]
[329120342,1718122243351,-530.57203676,0.00021917,2]
[329120345,1718122243363,-500.0,0.00021917,2]
[329120348,1718122243373,-966.51,0.00021917,2]
[329120350,1718122243383,-500.0,0.00021917,2]
[329120352,1718122243393,-602.19,0.00021917,2]
[329120354,1718122243403,-500.0,0.00021917,2]
[329120356,1718122243413,-500.0,0.00021917,2]
[329120358,1718122243423,-500.0,0.00021917,2]
[329120359,1718122243432,-500.0,0.00021917,2]
[329120361,1718122243442,-500.0,0.00021917,2]
[329120363,1718122243451,-716.84,0.00021917,2]
[329120366,1718122243463,-584.57,0.00021917,2]
[329120369,1718122243473,-217.31625713,0.00021917,2]
[329120372,1718122243484,-500.0,0.00021917,2]
[329120375,1718122243494,-500.0,0.00021917,2]
[329120378,1718122243507,-500.0,0.00021917,2]
[329120381,1718122243518,-500.0,0.00021917,2]
[329120384,1718122243529,-500.0,0.00021917,2]
[329120388,1718122243540,-500.0,0.00021917,2]
[329120391,1718122243550,-500.0,0.00021917,2]
[329120393,1718122243560,-578.83,0.00021917,2]
[329120394,1718122243571,-500.0,0.00021917,2]
[329120395,1718122243582,-500.0,0.00021917,2]
[329120398,1718122243592,-500.0,0.00021917,2]
[329120407,1718122243666,-1728.76,0.00021917,2]
[329120409,1718122243678,-506.15,0.00021917,2]
[329120411,1718122243688,-500.0,0.00021917,2]
[329120413,1718122243699,-854.16,0.00021917,2]
[329120416,1718122243708,-399.21774873,0.00021917,2]
[329120419,1718122243720,-500.0,0.00021917,2]
[329120421,1718122243730,-500.0,0.00021917,2]
[329120423,1718122243740,-540.14,0.00021917,2]
[329120425,1718122243752,-500.0,0.00021917,2]
[329120427,1718122243762,-500.0,0.00021917,2]
[329120429,1718122243772,-500.0,0.00021917,2]
[329120430,1718122243782,-500.0,0.00021917,2]
[329120432,1718122243792,-500.0,0.00021917,2]
[329120433,1718122243802,-500.0,0.00021917,2]
[329120434,1718122243812,-837.08,0.00021917,2]
[329120435,1718122243822,-500.0,0.00021917,2]
[329120436,1718122243832,-676.23,0.00021917,2]
[329120437,1718122243841,-346.41717023,0.00021917,2]
[329120438,1718122243919,-153.58282977,0.00021917,2]
[329120439,1718122243930,-500.0,0.00021917,2]
[329120440,1718122243941,-500.0,0.00021917,2]
[329120441,1718122243953,-500.0,0.00021917,2]
[329120442,1718122243964,-7.93955703,0.00021917,2]
[329120443,1718122243977,-492.06044297,0.00021917,2]
[329120444,1718122243987,-500.0,0.00021917,2]
[329120445,1718122243997,-41.02039595,0.00021917,2]
[329120458,1718122244159,-458.97960405,0.00021917,2]
[329120460,1718122244169,-500.0,0.00021917,2]
[329120461,1718122244179,-500.0,0.00021917,2]
[329120462,1718122244189,-500.0,0.00021917,2]
[329120463,1718122244199,-500.0,0.00021917,2]
[329120464,1718122244220,-500.0,0.00021917,2]
[329120465,1718122244230,-500.0,0.00021917,2]